bitfinex/quotes_SOLUSD_20251201
["timestamp","ask_amount","ask_price","bid_price","bid_amount"]
[1764626882541,3.89367505,126.64,126.63,0.2]
[1764626882847,12.84578154,126.64,126.63,0.2]
[1764626883644,12.69367505,126.65,126.63,0.2]
[1764626883815,8.8,126.65,126.63,11.99048845]
[1764626884020,8.8,126.65,126.64,3.89367505]
[1764626884534,8.8,126.68,126.64,10.84806523]
[1764626885345,8.8,126.68,126.66,10.84806523]
[1764626885515,8.8,126.68,126.67,18.74259432]
[1764626885722,18.73963156,126.72,126.67,18.74259432]
[1764626886025,8.8,126.71,126.68,10.84806523]
[1764626886220,8.8,126.71,126.67,7.89452909]
[1764626886431,10.84806523,126.7,126.67,7.89452909]
[1764626886837,10.84806523,126.69,126.67,7.89452909]
[1764626887038,10.84806523,126.69,126.66,16.308864]
[1764626887340,16.69224673,126.71,126.66,35.05198776]
[1764626887513,10.84806523,126.7,126.66,24.20392253]
[1764626889345,16.69224673,126.71,126.66,24.20392253]
[1764626889531,10.84806523,126.7,126.66,24.20392253]
[1764626889715,8.8,126.71,126.67,10.84806523]
[1764626889914,19.64806523,126.71,126.66,54.7898687]
[1764626891138,10.84806523,126.7,126.66,24.20392253]
[1764626892047,10.84806523,126.69,126.66,24.20392253]
[1764626892428,16.69239578,126.71,126.66,7.89505853]
[1764626892630,10.84806523,126.7,126.66,7.89505853]
[1764626892833,10.84806523,126.69,126.66,7.89505853]
[1764626893544,8.8,126.68,126.66,7.89505853]
[1764626895950,8.8,126.68,126.66,18.74312376]
[1764626896754,8.8,126.68,126.67,10.84806523]
[1764626897862,8.8,126.68,126.67,18.74259432]
[1764626898939,8.8,126.73,126.67,38.62107861]
[1764626899133,8.8,126.73,126.71,10.84806523]
[1764626899356,8.8,126.73,126.72,10.84806523]
[1764626900044,8.8,126.73,126.72,18.73947937]
[1764626902559,7.88788395,126.78,126.72,54.77687872]
[1764626902736,8.8,126.76,126.74,10.84806523]
[1764626904075,8.8,126.76,126.74,18.73792631]
[1764626904759,8.8,126.76,126.74,7.88986108]
[1764626907962,8.8,126.76,126.73,7.89079144]
[1764626908170,7.8,126.76,126.73,7.89079144]
[1764626910873,7.8,126.76,126.72,24.20002737]
[1764626911058,7.8,126.76,126.72,35.0480926]
[1764626913578,7.8,126.76,126.73,18.73839252]
[1764626913981,15.6890064,126.76,126.72,24.20000975]
[1764626914182,24.1968211,126.78,126.71,10.84806523]
[1764626914355,19.64806523,126.77,126.72,10.84806523]
[1764626915548,27.53646813,126.77,126.73,7.89079144]
[1764626917476,27.53646813,126.77,126.72,7.89114846]
[1764626920394,18.73719491,126.76,126.72,7.89114846]
[1764626920697,8.8,126.83,126.75,27.15692923]
[1764626920982,16.68456989,126.83,126.8,10.84806523]
[1764626921183,8.8,126.83,126.8,10.84806523]
[1764626921387,8.8,126.83,126.81,10.84806523]
[1764626921766,8.8,126.83,126.79,16.308864]
[1764626921974,8.8,126.83,126.79,27.15692923]
[1764626922164,16.68460221,126.83,126.79,24.19560642]
[1764626922356,8.8,126.83,126.79,24.19560642]
[1764626922556,8.8,126.83,126.79,35.04367165]
[1764626923682,8.8,126.83,126.79,24.19560642]
[1764626923887,8.8,126.83,126.79,35.04367165]
[1764626924882,8.8,126.83,126.8,10.84806523]
[1764626926164,8.8,126.83,126.79,38.45245099]
[1764626926485,8.8,126.83,126.8,3.88558928]
[1764626928287,8.8,126.83,126.8,11.77159619]
[1764626928781,8.8,126.83,126.81,3.88558928]
[1764626928987,8.8,126.83,126.82,3.88558928]
[1764626929682,8.78,126.83,126.82,3.88558928]
[1764626930486,8.78,126.83,126.82,11.77078089]
[1764626932275,8.78,126.83,126.81,3.88558928]
[1764626932471,8.78,126.83,126.82,3.88558928]
[1764626932872,0.1,126.84,126.82,3.88558928]
[1764626933087,0.1,126.84,126.83,3.88558928]
[1764626934289,0.1,126.84,126.83,11.77015917]
[1764626936199,0.1,126.89,126.84,8.80994492]
[1764626936373,0.1,126.89,126.88,3.88558928]
[1764626938596,0.1,126.89,126.88,11.76705207]
[1764626938796,0.1,126.89,126.88,7.88146279]
[1764626940494,0.1,126.89,126.87,7.88185697]
[1764626940699,0.1,126.89,126.87,11.76744625]
[1764626940883,0.1,126.89,126.87,7.88185697]
[1764626941401,0.1,126.89,126.88,3.88558928]
[1764626942198,0.1,126.9,126.88,3.88558928]
[1764626942199,1e-08,126.9,126.89,8.80994492]
[1764626942400,1e-08,126.9,126.89,21.21618542]
[1764626942603,1e-08,126.9,126.89,19.17203469]
[1764626943990,1e-08,126.9,126.89,10.36208977]
[1764626946486,1e-08,126.92,126.9,8.80994492]
[1764626946692,32.10781767,126.95,126.93,16.308864]
[1764626946877,32.10781767,126.95,126.94,2.4812481]
[1764626947312,32.10781767,126.95,126.94,18.7901121]
[1764626947674,32.10781767,126.95,126.94,46.44721099]
[1764626947675,1e-08,126.95,126.94,46.44721099]
[1764626947978,1e-08,126.95,126.94,60.19365899]
[1764626948393,1e-08,126.95,126.94,68.0713965]
[1764626949173,1e-08,126.95,126.94,56.66798683]
[1764626949401,1e-08,126.95,126.94,7.87773751]
[1764626950103,1e-08,126.95,126.94,10.35898561]
[1764626950621,1e-08,126.95,126.92,10.36022698]
[1764626950800,2.48124811,126.95,126.92,7.87897888]
[1764626950979,1e-08,126.95,126.92,7.87897888]
[1764626952693,6.89524515,126.95,126.9,14.77545364]
[1764626953018,6.89524514,126.94,126.9,14.77545364]
[1764626953997,6.89524514,126.91,126.87,6.89524514]
[1764626954681,6.89524514,126.9,126.86,7.88270534]
[1764626954882,27.57229695,126.94,126.85,6.89524514]
[1764626954883,6.89524514,126.88,126.85,7.88326407]
[1764626955083,15.67524514,126.89,126.85,7.88326407]
[1764626956004,6.89524514,126.88,126.83,7.88405315]
[1764626956203,6.89524514,126.87,126.83,14.77929829]
[1764626956391,8.78,126.89,126.85,6.89524514]
[1764626957112,8.78,126.89,126.86,6.89524514]
[1764626957609,15.67524514,126.89,126.85,6.89524514]
[1764626957985,15.67524514,126.89,126.85,14.77796766]
[1764626958606,23.55627196,126.89,126.85,14.77796766]
[1764626958794,6.89524514,126.88,126.85,7.88272252]
[1764626959807,16.66102682,126.89,126.83,6.89524514]
[1764626959808,6.89524514,126.87,126.83,6.89524514]
[1764626960209,6.89524514,126.87,126.83,14.77959755]
[1764626960514,6.89524514,126.87,126.83,7.88435241]
[1764626960711,6.89524514,126.85,126.82,7.88508587]
[1764626960912,15.67524514,126.85,126.82,7.88508587]
[1764626961785,8.78,126.85,126.82,7.88508587]
[1764626961986,7.88155127,126.88,126.84,6.89524514]
[1764626961987,7.88169796,126.88,126.84,6.89524514]
[1764626962288,7.88169796,126.88,126.85,6.89524514]
[1764626962494,7.88169796,126.88,126.84,6.89524514]
[1764626963490,16.66133174,126.89,126.84,6.89524514]
[1764626963810,23.55657688,126.89,126.85,6.89524514]
[1764626964008,23.55657688,126.89,126.85,14.77824864]
[1764626964209,23.55657688,126.89,126.85,7.8830035]
[1764626966105,6.89524514,126.88,126.85,7.8830035]
[1764626966408,23.55657688,126.89,126.85,7.8830035]
[1764626967108,23.55657688,126.89,126.83,27.59528401]
[1764626967410,23.55657688,126.89,126.84,6.89524514]
[1764626968498,6.89524514,126.88,126.85,7.88332676]
[1764626968897,16.66133174,126.89,126.85,7.88332676]
[1764626968898,6.89524514,126.86,126.85,7.88332676]
[1764626969213,6.89524514,126.86,126.83,27.59487835]
[1764626969214,15.67524514,126.86,126.83,27.59487835]
[1764626970198,15.67524514,126.86,126.83,7.88416423]
[1764626971089,6.89524514,126.84,126.81,27.59901047]
[1764626971410,6.89524514,126.85,126.81,27.59901047]
[1764626972418,6.89524514,126.85,126.81,34.49425561]
[1764626973121,6.89524514,126.84,126.8,14.78168047]
[1764626973501,15.67524514,126.83,126.8,7.88643533]
[1764626974920,6.89524514,126.81,126.77,6.89524514]
[1764626975108,8.78,126.83,126.78,14.78292458]
[1764626975309,6.89524514,126.82,126.78,14.78292458]
[1764626975500,6.89524514,126.82,126.78,34.50212319]
[1764626976495,15.67524514,126.84,126.8,6.89524514]
[1764626976699,6.89524514,126.82,126.78,7.88767944]
[1764626976926,6.89524514,126.81,126.77,7.8881723]
[1764626977423,15.67524514,126.81,126.77,7.8881723]
[1764626978098,6.89524514,126.8,126.77,7.8881723]
[1764626978514,2.48823607,126.8,126.77,7.8881723]
[1764626979310,11.26823607,126.81,126.77,7.8881723]
[1764626979829,8.78,126.81,126.77,7.8881723]
[1764626980012,11.26823607,126.81,126.77,7.8881723]
[1764626980526,2.48823607,126.8,126.77,7.8881723]
[1764626981827,11.26823607,126.81,126.77,7.8881723]
[1764626982617,2.48823607,126.8,126.77,7.8881723]
[1764626983133,2.48823607,126.78,126.74,22.21308877]
[1764626983327,2.48823607,126.78,126.74,30.10325761]
[1764626983724,11.26823607,126.78,126.74,30.10325761]
[1764626984621,8.78,126.78,126.74,30.10325761]
[1764626984827,8.78,126.78,126.75,2.48823607]
[1764626987030,8.78,126.78,126.76,7.88892395]
[1764626993217,8.78,126.78,126.74,19.7248527]
[1764626993218,2.48823607,126.77,126.74,27.61502154]
[1764626993839,2.48823607,126.77,126.74,7.89016884]
[1764626994530,2.48823607,126.77,126.74,27.61559096]
[1764626994726,8.78,126.78,126.76,2.48823607]
[1764626994921,8.78,126.78,126.75,2.48823607]
[1764626995933,2.48823607,126.76,126.74,7.89016884]
[1764626996136,2.48823607,126.75,126.74,7.89016884]
[1764626996744,2.48823607,126.76,126.74,7.89016884]
[1764626996942,8.78,126.78,126.74,30.10382703]
[1764626997124,11.26823607,126.78,126.74,30.10382703]
[1764626997735,11.26823607,126.78,126.72,52.73875841]
[1764626998038,11.26823607,126.78,126.72,55.22699448]
[1764626998039,2.48823607,126.76,126.72,55.22699448]
[1764627000641,2.48823607,126.77,126.73,2.48823607]
[1764627000944,8.78,126.78,126.73,2.48823607]
[1764627001143,2.48823607,126.77,126.73,2.48823607]
[1764627001341,2.48823607,126.76,126.72,52.73875841]
[1764627001643,2.48823607,126.76,126.73,2.48823607]
[1764627002045,8.78,126.78,126.73,2.48823607]
[1764627002246,2.48823607,126.76,126.74,7.89016884]
[1764627002423,3.89011237,126.76,126.74,7.89016884]
[1764627003134,8.78,126.78,126.74,27.61559096]
[1764627003446,8.78,126.78,126.7,7.89265982]
[1764627003447,3.89011237,126.75,126.7,7.89265982]
[1764627003631,3.89011237,126.73,126.7,7.89265982]
[1764627004033,32.97694481,126.78,126.7,7.89265982]
[1764627004230,3.89011237,126.73,126.7,27.62430938]
[1764627005716,3.89011237,126.71,126.69,8.09314718]
[1764627007752,16.67106206,126.73,126.69,8.09314718]
[1764627007963,3.89011237,126.72,126.69,8.09314718]
[1764627008130,8.78,126.73,126.69,11.98325955]
[1764627008938,12.67011237,126.73,126.69,11.98325955]
[1764627009450,12.67011237,126.73,126.69,31.71646659]
[1764627010435,12.67011237,126.73,126.69,0.2]
[1764627010950,20.56101662,126.73,126.69,0.2]
[1764627011259,3.89011237,126.72,126.69,0.2]
[1764627012067,3.89011237,126.7,126.69,0.2]
[1764627013768,8.78,126.73,126.69,8.09328281]
[1764627013940,3.89011237,126.7,126.69,8.09328281]
[1764627014748,3.89011237,126.7,126.69,0.2]
[1764627015348,8.78,126.73,126.69,0.2]
[1764627015550,3.89011237,126.7,126.69,8.09328281]
[1764627022072,3.89011237,126.7,126.69,0.2]
[1764627027483,12.67011237,126.7,126.69,0.2]
[1764627031374,8.78,126.7,126.69,8.09328281]
[1764627031577,12.67011237,126.7,126.69,0.2]
[1764627033786,8.78,126.7,126.69,0.2]
[1764627034080,12.67011237,126.7,126.69,0.2]
[1764627034882,8.78,126.7,126.69,0.2]
[1764627035086,12.67011237,126.7,126.69,0.2]
[1764627037879,8.78,126.7,126.69,0.2]
[1764627038078,12.67011237,126.7,126.69,0.2]
[1764627038790,8.78,126.7,126.69,0.2]
[1764627038966,12.67011237,126.7,126.69,0.2]
[1764627041062,8.78,126.7,126.69,0.2]
[1764627041265,12.67011237,126.7,126.69,0.2]
[1764627043194,29.51487868,126.7,126.69,0.2]
[1764627044557,45.82374268,126.7,126.69,0.2]
[1764627046367,140.55539224,126.7,126.63,0.2]
[1764627046571,3.89011237,126.64,126.63,0.2]
[1764627046774,12.67011237,126.64,126.63,0.2]
[1764627048463,20.56651161,126.64,126.63,0.2]
[1764627048696,16.67639924,126.64,126.63,0.2]
[1764627048868,20.56651161,126.64,126.63,0.2]
[1764627051682,45.8274821,126.64,126.63,0.2]
[1764627052081,29.5186181,126.64,126.63,1e-08]
[1764627052278,25.26097049,126.62,126.61,0.2]
[1764627052486,29.15108286,126.62,126.61,0.2]
[1764627053293,25.088864,126.62,126.61,0.2]
[1764627054995,8.78,126.62,126.61,0.2]
[1764627055414,20.56775887,126.62,126.61,0.2]
[1764627058174,20.70992044,126.62,126.61,0.2]
[1764627060604,8.78,126.62,126.61,0.2]
[1764627060898,12.67011237,126.62,126.61,0.2]
[1764627061299,20.70992044,126.62,126.61,0.2]
[1764627062401,11.27590495,126.62,126.61,0.2]
[1764627063105,11.27590495,126.62,126.61,0.11686889]
[1764627063396,19.31571302,126.62,126.61,0.11686889]
[1764627064802,16.81980807,126.62,126.61,0.11686889]
[1764627064997,19.31571302,126.62,126.61,0.11686889]
[1764627065200,8.78,126.62,126.61,0.11686889]
[1764627065501,11.27590495,126.62,126.61,0.11686889]
[1764627065879,19.31571302,126.62,126.61,0.11686889]
[1764627068705,28.12565794,126.62,126.61,0.11686889]
[1764627069201,25.62975299,126.62,126.61,0.11686889]
[1764627069403,11.27590495,126.62,126.61,0.11686889]
[1764627070395,19.17355145,126.62,126.61,0.11686889]
[1764627070707,28.12565794,126.62,126.61,0.11686889]
[1764627072997,38.10927774,126.62,126.61,0.11686889]
[1764627073409,38.10927774,126.62,126.59,0.2]
[1764627073410,28.78838875,126.6,126.59,0.2]
[1764627073614,37.56838875,126.6,126.59,0.2]
[1764627074292,8.95210649,126.59,126.58,0.2]
[1764627074609,11.44801144,126.59,126.58,0.2]
[1764627075388,19.34752956,126.59,126.58,0.2]
[1764627076613,22.51547,126.59,126.58,0.2]
[1764627079619,20.01956505,126.59,126.58,0.2]
[1764627079817,22.51547,126.59,126.58,0.2]
[1764627088299,16.308864,126.57,126.56,0.2]
[1764627088495,27.58476895,126.57,126.56,0.2]
[1764627088926,35.48889229,126.57,126.56,0.2]
[1764627089327,43.38965866,126.57,126.56,0.2]
[1764627089824,52.34176515,126.57,126.56,0.2]
[1764627090022,21.43163124,126.54,126.53,0.2]
[1764627090227,30.21163124,126.54,126.53,0.2]
[1764627090723,46.52049524,126.54,126.53,0.2]
[1764627091427,54.42313472,126.54,126.5,0.2]
[1764627091729,18.80476895,126.51,126.5,0.2]
[1764627091925,27.58476895,126.51,126.5,0.2]
[1764627092308,8.80994492,126.5,126.48,0.2]
[1764627092517,11.27590495,126.49,126.48,0.2]
[1764627093429,19.18166825,126.49,126.48,0.2]
[1764627093726,45.47415205,126.49,126.48,0.2]
[1764627094113,0.14216157,126.44,126.37,0.2]
[1764627094351,11.27590495,126.43,126.38,2.49590495]
[1764627094504,2.49590495,126.42,126.38,2.49590495]
[1764627094709,8.78,126.41,126.38,2.49590495]
[1764627094930,8.78,126.41,126.37,10.60915029]
[1764627095130,8.78,126.41,126.38,2.49590495]
[1764627095435,2.49590495,126.4,126.37,0.2]
[1764627096031,2.49590495,126.38,126.37,0.2]
[1764627096245,11.27590495,126.38,126.37,0.2]
[1764627096544,8.78,126.38,126.37,0.2]
[1764627097535,7.91149687,126.4,126.37,0.2]
[1764627097536,16.308864,126.4,126.37,0.2]
[1764627097710,8.8,126.39,126.37,0.2]
[1764627098314,2.49590495,126.38,126.37,0.2]
[1764627098513,11.29590495,126.39,126.37,0.2]
[1764627098730,16.308864,126.38,126.37,0.2]
[1764627098933,8.8,126.39,126.37,0.2]
[1764627099141,11.29590495,126.39,126.37,0.2]
[1764627099806,8.8,126.39,126.37,0.2]
[1764627100538,2.49590495,126.4,126.37,0.2]
[1764627100722,8.8,126.39,126.37,0.2]
[1764627100910,8.8,126.38,126.37,8.11317544]
[1764627102238,8.8,126.38,126.37,0.2]
[1764627109034,8.8,126.38,126.37,10.6091755]
[1764627109448,8.8,126.38,126.37,8.11327055]
[1764627110045,8.8,126.38,126.37,10.6091755]
[1764627110418,8.8,126.38,126.37,0.2]
[1764627110635,8.8,126.39,126.37,0.2]
[1764627111031,8.8,126.39,126.37,8.11317034]
[1764627111734,8.8,126.39,126.37,0.2]
[1764627112047,8.8,126.39,126.37,8.1131468]
[1764627112546,11.29590495,126.39,126.37,0.2]
[1764627114144,8.8,126.42,126.38,16.308864]
[1764627114343,8.8,126.42,126.4,2.49590495]
[1764627114653,8.8,126.42,126.39,2.49590495]
[1764627115444,8.8,126.42,126.39,10.40754557]
[1764627116024,8.8,126.42,126.39,7.91164062]
[1764627116432,8.8,126.42,126.4,2.49590495]
[1764627117128,8.8,126.42,126.39,30.18759145]
[1764627120550,8.8,126.42,126.39,27.6916865]
[1764627120950,8.8,126.42,126.39,30.18759145]
[1764627121147,8.8,126.42,126.39,27.6916865]
[1764627121349,16.308864,126.46,126.39,7.91164062]
[1764627121550,8.8,126.45,126.41,2.49590495]
[1764627122132,8.8,126.45,126.42,7.9101408]
[1764627124144,8.8,126.45,126.42,30.18139775]
[1764627124347,8.8,126.45,126.42,31.59359313]
[1764627124761,21.74487906,126.51,126.43,3.90810033]
[1764627124762,7.90569319,126.5,126.43,3.90810033]
[1764627124964,8.8,126.49,126.44,3.90810033]
[1764627125262,3.90810033,126.48,126.43,28.57106299]
[1764627125632,3.90810033,126.48,126.43,32.47916332]
[1764627125833,3.90810033,126.48,126.44,7.90888959]
[1764627126035,20.61393821,126.49,126.44,7.90888959]
[1764627126676,3.90810033,126.48,126.44,7.90888959]
[1764627127034,19.76111807,126.53,126.45,8.80994492]
[1764627127230,8.8,126.52,126.47,3.90810033]
[1764627127662,12.70810033,126.52,126.47,8.8]
[1764627127839,12.70810033,126.52,126.48,7.90638836]
[1764627128250,8.8,126.52,126.48,7.90638836]
[1764627128466,12.70810033,126.52,126.48,7.90638836]
[1764627129262,11.8126138,126.51,126.48,7.90638836]
[1764627129472,3.90810033,126.5,126.48,7.90638836]
[1764627129764,8.8,126.49,126.48,7.90638836]
[1764627129947,8.8,126.49,126.46,27.67630104]
[1764627130666,8.8,126.49,126.47,3.90810033]
[1764627130968,8.8,126.49,126.46,27.67630104]
[1764627131133,8.8,126.49,126.48,3.90810033]
[1764627131745,28.11971607,126.54,126.48,3.90810033]
[1764627131948,28.11971607,126.54,126.49,7.90524684]
[1764627131949,8.8,126.53,126.49,7.90524684]
[1764627132171,12.70810033,126.53,126.49,7.90524684]
[1764627132347,8.8,126.53,126.49,7.90524684]
[1764627132948,0.2,126.55,126.52,3.90810033]
[1764627133153,0.2,126.55,126.54,3.90810033]
[1764627133355,0.2,126.55,126.53,3.90810033]
[1764627133874,8.98,126.55,126.53,3.90810033]
[1764627134369,8.98,126.55,126.53,11.81081823]
[1764627136169,8.98,126.55,126.54,3.90810033]
[1764627137655,8.98,126.55,126.53,3.90810033]
[1764627139084,4.13078697,126.64,126.54,29.02690925]
[1764627139377,16.308864,126.6,126.54,3.90810033]
[1764627139579,12.68810033,126.59,126.54,3.90810033]
[1764627139878,3.90810033,126.58,126.55,7.90201501]
[1764627140678,12.68810033,126.59,126.55,7.90201501]
[1764627140851,3.90810033,126.58,126.55,7.90201501]
[1764627141576,16.67957206,126.59,126.55,7.90201501]
[1764627141779,3.90810033,126.58,126.54,7.90263948]
[1764627143282,3.90810033,126.58,126.53,27.66065075]
[1764627143482,3.90810033,126.58,126.53,31.56875108]
[1764627143980,3.90810033,126.56,126.53,27.66065075]
[1764627144278,8.78,126.55,126.53,27.66065075]
[1764627144876,8.78,126.55,126.53,19.75738671]
[1764627145068,8.78,126.55,126.52,7.90388871]
[1764627150409,8.78,126.54,126.52,7.90388871]
[1764627150693,75.0,126.62,126.53,12.71804525]
[1764627150694,7.89808482,126.62,126.53,12.71804525]
[1764627150864,7.89808482,126.62,126.56,3.90810033]
[1764627150865,12.68810033,126.61,126.56,3.90810033]
[1764627151065,12.68810033,126.61,126.55,3.90810033]
[1764627152295,11.80699448,126.6,126.55,11.80959155]
[1764627153565,7.89889415,126.6,126.55,11.80959155]
[1764627153768,11.80699448,126.6,126.55,3.90810033]
[1764627153994,3.90810033,126.59,126.54,31.56666398]
[1764627155397,11.80699448,126.6,126.55,3.90810033]
[1764627155973,3.90810033,126.59,126.54,27.65856365]
[1764627156176,3.90810033,126.59,126.54,31.56666398]
[1764627156582,3.90810033,126.58,126.54,7.90263948]
[1764627156795,8.78,126.57,126.54,7.90263948]
[1764627156985,8.78,126.57,126.54,11.81073981]
[1764627158398,8.78,126.57,126.54,7.90263948]
[1764627158568,8.78,126.57,126.53,7.90298367]
[1764627158569,20.58898634,126.57,126.53,7.90298367]
[1764627158774,20.58898634,126.57,126.51,7.90451347]
[1764627158775,3.90810033,126.55,126.51,7.90451347]
[1764627159087,3.90810033,126.55,126.52,16.308864]
[1764627159595,3.90810033,126.55,126.52,24.21249631]
[1764627159789,3.90810033,126.54,126.52,16.308864]
[1764627159988,8.78,126.53,126.52,16.308864]
[1764627162996,8.78,126.53,126.52,7.90388871]
[1764627163710,8.78,126.57,126.53,8.80994492]
[1764627164008,8.78,126.57,126.56,3.90810033]
[1764627164500,7.89858591,126.61,126.56,3.90810033]
[1764627164812,8.78,126.6,126.56,3.90810033]
[1764627164980,8.78,126.6,126.57,7.90076637]
[1764627167099,11.80668624,126.61,126.56,11.80949097]
[1764627167293,8.78,126.59,126.56,11.80949097]
[1764627169476,8.78,126.61,126.58,20.21696433]
[1764627169681,8.78,126.61,126.6,3.90810033]
[1764627169877,3.90810033,126.65,126.6,3.90810033]
[1764627170099,8.78,126.64,126.6,3.90810033]
[1764627170506,8.78,126.64,126.61,7.89827027]
[1764627171884,16.67642653,126.64,126.6,3.90810033]
[1764627172513,8.78,126.64,126.6,11.80653274]
[1764627172817,8.78,126.64,126.6,7.89843241]
[1764627172985,8.78,126.64,126.6,11.80653274]
[1764627175212,0.2,126.68,126.63,3.90810033]
[1764627175386,8.78,126.67,126.65,3.90810033]
[1764627175591,8.78,126.67,126.64,3.90810033]
[1764627175907,8.78,126.67,126.63,3.90810033]
[1764627176090,12.68810033,126.67,126.61,8.80994492]
[1764627176409,12.68810033,126.67,126.62,3.90810033]
[1764627176907,3.90810033,126.67,126.62,11.80574683]
[1764627177108,8.78,126.66,126.62,7.8976465]
[1764627178326,3.90810033,126.63,126.54,17.58994492]
[1764627178490,8.8,126.62,126.58,3.90810033]
[1764627178695,8.8,126.62,126.59,3.90810033]
[1764627178906,16.308864,126.66,126.61,3.90810033]
[1764627179090,8.8,126.65,126.62,3.90810033]
[1764627179290,8.8,126.65,126.58,8.80994492]
[1764627179485,8.8,126.65,126.61,3.90810033]
[1764627180188,12.70810033,126.65,126.62,7.8976465]
[1764627180384,3.90810033,126.63,126.57,19.75045319]
[1764627180691,3.90810033,126.59,126.53,3.90810033]
[1764627180892,12.70810033,126.58,126.53,3.90810033]
[1764627181191,8.8,126.58,126.54,3.90810033]
[1764627181404,8.8,126.58,126.53,25.11880892]
[1764627181600,8.8,126.58,126.53,3.90810033]
[1764627181791,8.8,126.58,126.5,8.80994492]
[1764627181989,8.8,126.58,126.54,3.90810033]
[1764627182211,8.8,126.57,126.56,3.90810033]
[1764627182609,8.8,126.57,126.55,31.56515287]
[1764627183096,8.8,126.57,126.55,27.65705254]
[1764627183409,8.8,126.57,126.55,31.56515287]
[1764627183613,8.8,126.57,126.55,27.65705254]
[1764627183792,8.8,126.57,126.55,31.56515287]
[1764627183994,8.8,126.57,126.56,3.90810033]
[1764627184297,8.8,126.57,126.55,27.65705254]
[1764627185120,8.8,126.57,126.55,7.90201501]
[1764627185712,8.8,126.57,126.54,16.308864]
[1764627185713,11.29669236,126.57,126.54,7.90244884]
[1764627186007,16.70092878,126.57,126.53,7.90309784]
[1764627186416,19.19762114,126.57,126.53,7.90309784]
[1764627186597,16.70092878,126.57,126.53,10.3997902]
[1764627187118,19.19762114,126.57,126.52,10.40058107]
[1764627187319,16.70092878,126.57,126.52,10.40058107]
[1764627187522,55.79751055,126.62,126.52,10.40058107]
[1764627187523,8.8,126.56,126.53,2.49669236]
[1764627187813,76.99999999,126.64,126.52,27.66361049]
[1764627187814,8.8,126.55,126.52,30.16030285]
[1764627188714,8.8,126.55,126.52,27.66361049]
[1764627188901,8.8,126.55,126.52,30.16030285]
[1764627189303,8.8,126.55,126.52,27.66361049]
[1764627190300,8.8,126.55,126.52,30.16030285]
[1764627191236,8.8,126.55,126.52,27.66361049]
[1764627191803,11.29669236,126.55,126.49,2.49669236]
[1764627192008,2.49669236,126.54,126.49,2.49669236]
[1764627192311,2.49669236,126.53,126.49,16.308864]
[1764627192516,2.49669236,126.52,126.49,16.308864]
[1764627192714,8.8,126.51,126.49,16.308864]
[1764627193013,8.8,126.5,126.49,18.80555636]
[1764627193211,8.8,126.5,126.49,16.308864]
[1764627193409,8.8,126.5,126.49,24.2146273]
[1764627193602,8.8,126.5,126.49,7.9057633]
[1764627194022,8.8,126.5,126.47,28.57656371]
[1764627194023,8.8,126.5,126.48,7.90623902]
[1764627194812,8.8,126.5,126.46,16.71758369]
[1764627195008,8.8,126.5,126.44,7.9083638]
[1764627195009,11.29669236,126.5,126.44,7.9083638]
[1764627195207,2.49669236,126.49,126.44,7.9083638]
[1764627195441,2.49669236,126.49,126.44,24.2172278]
[1764627196004,2.49669236,126.49,126.44,43.989378]
[1764627196903,2.49669236,126.49,126.44,24.2172278]
[1764627197106,2.49669236,126.47,126.43,7.90939952]
[1764627197420,2.49669236,126.45,126.42,8.11004958]
[1764627197617,8.8,126.46,126.42,8.11004958]
[1764627197618,8.8,126.44,126.42,8.11004958]
[1764627197965,11.29669236,126.44,126.42,0.2]
[1764627198235,8.8,126.44,126.42,0.2]
[1764627198440,15.75186145,126.44,126.42,0.2]
[1764627198600,8.8,126.44,126.42,0.2]
[1764627198804,6.95186145,126.43,126.42,0.2]
[1764627199228,15.77186145,126.43,126.42,0.2]
[1764627199534,23.82353816,126.43,126.42,0.2]
[1764627203526,16.87167671,126.43,126.42,0.2]
[1764627203840,23.82353816,126.43,126.42,0.2]
[1764627204936,32.63348308,126.43,126.42,0.2]
[1764627207009,32.63348308,126.43,126.41,0.1]
[1764627207010,8.95210649,126.42,126.41,0.1]
[1764627207205,15.90396794,126.42,126.41,0.1]